bitfinex/quotes_ETHUSD_20260203
["timestamp","ask_amount","ask_price","bid_price","bid_amount"]
[1770108237139,0.9,2330.1,2329.5,13.55326066]
[1770108237339,0.9,2330.1,2329.5,15.33796772]
[1770108237719,0.9,2330.1,2329.5,15.37679597]
[1770108237943,0.9,2330.4,2329.5,15.37679597]
[1770108239123,0.9,2330.5,2329.5,15.37679597]
[1770108239653,12.38396546,2330.4,2329.5,1.82353531]
[1770108239807,12.38396546,2330.4,2329.4,0.001]
[1770108240009,12.38396546,2330.4,2329.5,1.07318447]
[1770108240339,12.38396546,2330.4,2329.4,1.07420827]
[1770108240533,12.38396546,2330.4,2329.4,0.001]
[1770108240746,12.38396546,2330.2,2329.4,0.001]
[1770108241150,2.40124756,2330.3,2329.4,12.48106899]
[1770108241307,0.9,2330.2,2329.4,12.48106899]
[1770108242343,13.28396546,2330.2,2329.4,0.001]
[1770108242634,13.28396546,2330.2,2329.4,12.48106899]
[1770108242635,1.5685213,2330.1,2329.4,12.48106899]
[1770108242843,0.0011,2330.0,2329.4,12.48106899]
[1770108243041,0.0011,2330.0,2329.4,0.001]
[1770108243739,0.0011,2330.0,2329.4,12.48106899]
[1770108245540,0.0011,2330.0,2329.5,1.07319167]
[1770108245738,0.0011,2330.0,2329.5,13.55326066]
[1770108246117,0.0011,2330.0,2329.6,12.48006899]
[1770108247440,0.0011,2330.0,2329.7,1.07309954]
[1770108247740,0.0011,2330.0,2329.7,13.55316853]
[1770108249646,0.0011,2330.2,2329.8,12.48006899]
[1770108250343,0.0011,2330.2,2329.7,1.07309954]
[1770108250344,0.35198222,2330.7,2329.9,12.48006899]
[1770108250518,0.35198222,2330.7,2330.1,12.48006899]
[1770108251746,0.35198222,2330.7,2330.2,1.07286928]
[1770108255634,0.0011,2330.5,2330.1,1.07288248]
[1770108256054,12.38506546,2330.5,2329.9,1.07298571]
[1770108256367,1.23850655,2330.4,2329.9,1.07297965]
[1770108256855,1.23850655,2330.4,2329.9,1.07298906]
[1770108259052,0.0011,2330.5,2329.7,13.55316853]
[1770108268881,0.0011,2330.5,2329.9,0.001]
[1770108269178,0.0011,2330.3,2329.9,0.001]
[1770108269381,0.0011,2330.3,2329.9,12.01481357]
[1770108270245,1e-08,2330.7,2330.0,12.01381357]
[1770108270679,1e-08,2330.7,2330.1,1.07291532]
[1770108271404,1e-08,2330.7,2330.1,13.08672889]
[1770108271566,1e-08,2330.7,2330.3,12.01381357]
[1770108272689,1e-08,2330.7,2330.5,12.01381357]
[1770108273568,1e-08,2330.7,2330.4,1.0727772]
[1770108273788,1e-08,2330.7,2330.4,2.04218308]
[1770108274265,1e-08,2330.7,2330.3,1.07278914]
[1770108275976,1e-08,2330.7,2330.1,1.07291532]
[1770108276196,1e-08,2330.7,2330.1,13.08672889]
[1770108281579,1e-08,2330.7,2330.3,0.001]
[1770108281904,0.0011,2330.5,2330.3,0.001]
[1770108282685,1e-08,2330.7,2330.3,13.32358646]
[1770108283387,1e-08,2330.7,2330.4,13.08659077]
[1770108287086,1e-08,2330.7,2330.4,13.12541902]
[1770108288300,0.0011,2331.0,2330.5,12.01381357]
[1770108290519,0.0011,2331.0,2330.7,12.01718524]
[1770108290716,0.0011,2331.0,2330.8,1.30898704]
[1770108291425,0.0011,2331.0,2330.6,1.07268514]
[1770108291787,0.0011,2331.0,2330.3,1.30977289]
[1770108291997,12.72869313,2330.9,2330.4,1.07276949]
[1770108292191,12.72869313,2330.9,2330.5,1.07272794]
[1770108292494,7.74859992,2331.0,2330.3,0.001]
[1770108292695,0.0011,2331.0,2330.3,12.99404004]
[1770108293020,0.0011,2331.0,2330.5,12.99304004]
[1770108295121,0.0011,2331.0,2330.7,0.001]
[1770108295324,0.0011,2330.8,2330.7,0.001]
[1770108295495,0.0011,2331.0,2330.7,12.99404004]
[1770108295697,0.0011,2331.0,2330.8,14.39971256]
[1770108296523,0.0011,2331.0,2330.8,1.40667252]
[1770108297426,0.0011,2331.0,2330.9,1.07254708]
[1770108297813,0.0011,2331.2,2330.9,14.06558712]
[1770108299530,0.0011,2331.2,2330.9,1.07254708]
[1770108300206,0.0011,2331.2,2330.9,1.74960314]
[1770108301747,0.0011,2331.2,2330.7,0.001]
[1770108301961,12.72869313,2331.0,2330.3,0.001]
[1770108302113,12.72869313,2331.0,2330.1,1.07289253]
[1770108302320,12.72869313,2331.0,2330.2,1.07286884]
[1770108302639,12.72869313,2330.8,2330.2,1.07286884]
[1770108302814,12.72869313,2330.8,2330.1,1.07289131]
[1770108303146,12.72869313,2330.8,2330.2,1.07286901]
[1770108304331,12.72869313,2330.6,2329.5,0.001]
[1770108304506,12.72869313,2330.4,2329.5,0.001]
[1770108304710,12.72869313,2330.2,2329.5,0.001]
[1770108305433,12.72869313,2330.2,2329.5,1.07416636]
[1770108305610,12.72869313,2330.2,2329.5,0.001]
[1770108306011,12.72869313,2330.2,2329.3,0.001]
[1770108306222,12.72869313,2329.8,2329.1,0.001]
[1770108306626,0.899,2329.7,2329.1,0.001]
[1770108308740,0.899,2329.7,2329.1,12.99404004]
[1770108309519,0.899,2329.7,2329.5,0.001]
[1770108311523,1.36276931,2330.1,2329.5,0.001]
[1770108311732,0.94261843,2330.0,2329.5,0.001]
[1770108311938,10.29,2330.4,2329.5,0.001]
[1770108311939,10.29,2330.7,2329.5,12.99404004]
[1770108312139,0.0011,2330.8,2329.7,12.99304004]
[1770108312559,0.0011,2330.8,2329.7,1.07307003]
[1770108312739,12.72979313,2330.8,2329.7,1.07307003]
[1770108312946,12.72869313,2330.6,2329.6,1.07311674]
[1770108313240,12.72869313,2330.6,2329.7,1.07309446]
[1770108313749,12.72869313,2330.6,2329.6,1.07311715]
[1770108314248,12.72869313,2330.6,2329.7,1.07309937]
[1770108314646,13.8014243,2330.5,2329.5,0.001]
[1770108314853,12.72869313,2330.3,2329.2,1.07329613]
[1770108315022,13.62869313,2330.2,2329.1,14.06739956]
[1770108315223,13.62869313,2330.2,2329.1,1.07435952]
[1770108315431,13.62869313,2330.2,2329.1,0.001]
[1770108315656,12.72869313,2330.0,2329.1,0.001]
[1770108316649,1.07300742,2329.9,2329.1,0.001]
[1770108316852,13.80170055,2329.9,2329.1,0.001]
[1770108317430,2.50958797,2330.1,2329.1,12.99404004]
[1770108317749,0.9,2330.0,2329.1,12.99404004]
[1770108317959,1.67010809,2330.0,2329.2,1.299504]
[1770108318559,1.67010809,2330.0,2329.3,14.06632385]
[1770108318729,0.9,2330.2,2329.3,14.06632385]
[1770108322243,1.97288996,2330.2,2329.3,14.06632385]
[1770108322555,14.4802943,2330.2,2329.2,1.07332608]
[1770108322928,0.0011,2330.0,2329.1,1.07434334]
[1770108323133,12.50850434,2330.0,2329.3,0.001]
[1770108323330,13.75825477,2329.9,2329.3,0.001]
[1770108323531,1.25085043,2329.9,2329.3,0.001]
[1770108323727,0.0011,2330.0,2329.3,0.001]
[1770108325246,12.50850434,2330.0,2329.3,0.001]
[1770108325840,0.0011,2330.0,2329.3,11.90868522]
[1770108327737,0.0011,2330.0,2329.4,12.98092296]
[1770108327937,0.0011,2330.0,2329.4,14.70841035]
[1770108329055,0.0011,2330.0,2329.4,1.07323774]
[1770108329252,0.0011,2330.0,2329.3,0.001]
[1770108329637,0.0011,2330.0,2329.3,1.07428365]
[1770108329843,0.0011,2330.0,2329.3,0.001]
[1770108331499,12.50850434,2330.0,2329.3,0.001]
[1770108331667,1.35814197,2329.9,2329.3,0.001]
[1770108331970,2.43119402,2329.9,2329.3,0.001]
[1770108332171,14.93859836,2329.9,2329.3,0.001]
[1770108332552,14.93859836,2329.9,2329.1,0.001]
[1770108335163,14.93859836,2329.9,2329.5,0.001]
[1770108335367,1.92316047,2329.8,2329.3,0.001]
[1770108335896,13.58050388,2329.7,2329.1,0.001]
[1770108336087,13.40740434,2329.6,2329.0,0.001]
[1770108339478,1.07319167,2329.5,2329.0,0.001]
[1770108339676,0.9,2329.6,2329.0,11.90868522]
[1770108340664,0.9,2329.6,2329.0,0.001]
[1770108340866,1.97315109,2329.6,2329.0,0.001]
[1770108341095,0.9,2329.6,2329.0,11.90868522]
[1770108341696,1.07300742,2329.9,2329.0,12.98209705]
[1770108341891,0.9,2329.7,2329.0,12.98209705]
[1770108342895,0.9,2329.7,2329.0,11.90868522]
[1770108343202,0.9,2329.7,2329.0,12.98210145]
[1770108343919,1.97310608,2329.7,2329.0,12.98210145]
[1770108345403,2.59963864,2329.7,2329.0,12.98210145]
[1770108346801,2.59963864,2329.7,2329.0,11.90868522]
[1770108347301,2.59963864,2329.7,2329.0,12.98210299]
[1770108347483,2.59963864,2329.7,2329.2,0.001]
[1770108347683,0.0011,2329.6,2329.2,0.001]
[1770108347894,0.69039582,2329.6,2329.2,0.001]
[1770108348389,1.7635715,2329.6,2329.2,0.001]
[1770108349601,0.69039582,2329.6,2329.2,0.001]
[1770108349777,0.0011,2329.6,2329.2,0.001]
[1770108350103,1.07425054,2329.6,2329.2,0.001]
[1770108355614,13.89591758,2329.6,2328.4,12.12087517]
[1770108355783,12.82166704,2329.5,2328.4,12.12087517]
[1770108355986,12.82166704,2329.3,2328.4,12.12087517]
[1770108356186,0.9,2329.2,2328.4,12.12087517]
[1770108356430,13.72166704,2329.2,2328.4,12.12087517]
[1770108356726,13.72166704,2329.2,2328.2,13.19643929]
[1770108356935,13.72166704,2329.2,2328.2,12.12267597]
[1770108357225,1.07337598,2329.1,2328.2,12.12267597]
[1770108357378,1.07333011,2329.2,2328.5,12.12187517]
[1770108357582,0.9,2329.1,2328.5,12.12187517]
[1770108357801,0.9,2329.1,2328.5,0.001]
[1770108359018,0.9,2329.1,2328.6,12.12087517]
[1770108359228,0.9,2329.1,2328.6,13.1944508]
[1770108359734,1.97338011,2329.1,2328.5,0.001]
[1770108359890,0.65778645,2329.0,2328.5,0.001]
[1770108360617,0.65778645,2329.0,2328.7,0.001]
[1770108361423,0.77216521,2329.1,2328.7,12.12187517]
[1770108363930,0.77216521,2329.1,2328.7,13.19543253]
[1770108364227,0.77216521,2329.1,2328.7,12.12187517]
[1770108365109,1.84554889,2329.1,2328.5,0.001]
[1770108365427,1.84554889,2329.1,2328.5,12.12187517]
[1770108365428,0.61388998,2329.0,2328.5,12.12187517]
[1770108366737,1.84555088,2329.1,2328.5,12.12187517]
[1770108367727,1.84555088,2329.1,2328.5,12.07187517]
[1770108368732,0.0011,2329.4,2328.5,13.14549711]
[1770108373243,0.0011,2329.6,2328.8,12.12087517]
[1770108373445,0.0011,2329.2,2328.8,12.12087517]
[1770108373751,0.0011,2329.2,2329.0,12.12087517]
[1770108373930,0.0011,2329.2,2329.1,13.19425115]
[1770108376452,0.0011,2330.0,2329.1,1.07337598]
[1770108376651,0.0011,2330.0,2329.3,12.12087517]
[1770108377346,0.0011,2330.2,2329.3,12.12087517]
[1770108377546,0.34648548,2330.4,2329.3,12.12087517]
[1770108378521,0.34648548,2330.4,2329.5,12.12087517]
[1770108380453,0.34648548,2330.4,2329.7,12.79228207]
[1770108380753,0.34648548,2330.4,2329.9,12.79228207]
[1770108383231,0.34648548,2330.4,2330.0,1.07296137]
[1770108383431,0.34648548,2330.4,2329.9,13.86526236]
[1770108385662,0.0011,2330.6,2330.1,12.79228207]
[1770108385829,0.0011,2330.6,2330.3,12.79228207]
[1770108386367,0.0011,2330.8,2330.3,12.79228207]
[1770108386865,0.0011,2330.4,2330.3,12.79228207]
[1770108387361,0.0011,2331.0,2330.3,12.79228207]
[1770108387533,0.0011,2331.0,2330.6,12.79228207]
[1770108387731,0.0011,2331.0,2330.6,14.17878339]
[1770108390460,0.0011,2331.2,2330.8,12.79228207]
[1770108391126,0.0011,2331.2,2330.7,1.07263912]
[1770108391127,0.0011,2331.2,2330.6,1.38650132]
[1770108391327,0.0011,2331.2,2330.5,13.86498366]
[1770108391948,12.91371375,2331.2,2330.3,13.86510025]
[1770108392362,1.07245506,2331.1,2330.4,1.07277461]
[1770108392565,1.39861688,2331.0,2330.4,1.07277461]
[1770108393140,12.91261375,2330.9,2330.1,1.07288017]
[1770108393565,1.39861688,2331.0,2330.1,13.86516224]
[1770108393866,13.98506881,2331.1,2330.1,13.86516224]
[1770108394451,13.98506881,2331.1,2330.1,12.79228207]
[1770108394765,1.07245506,2331.1,2330.1,13.8651856]
[1770108396371,12.91261375,2331.0,2330.1,13.8651856]
[1770108396570,1.39850688,2330.9,2330.1,14.90922498]
[1770108397072,1.07253998,2331.0,2330.1,14.90922498]
[1770108398467,4.28985312,2331.1,2330.1,14.90922498]
[1770108398675,12.91261375,2331.0,2330.1,1.07291086]
[1770108398854,12.91261375,2331.0,2329.9,13.86525877]
[1770108399170,12.91371375,2330.9,2329.9,13.86525877]
[1770108399579,12.91371375,2330.9,2330.0,1.07296066]
[1770108400074,12.91371375,2330.9,2330.0,1.07296042]
[1770108400252,14.29388513,2330.8,2330.0,1.07296042]
[1770108401155,13.98525287,2330.7,2329.8,13.86530025]
[1770108401779,1.38127138,2330.8,2329.8,13.86530025]
[1770108401964,1.07365578,2330.9,2329.8,13.86530025]
[1770108402475,0.0011,2330.9,2329.8,13.86530025]
[1770108407849,12.91371375,2330.9,2329.8,13.86530025]
[1770108408051,12.91371375,2330.9,2329.8,14.76430025]
[1770108408250,1.48852411,2330.8,2329.9,14.69804982]
[1770108408771,12.91371375,2330.9,2329.9,14.69804982]
[1770108409651,13.98628303,2330.9,2330.0,13.86524344]
[1770108412151,0.0011,2330.9,2330.0,13.86524344]
[1770108412348,0.0011,2330.9,2330.2,12.4392737]
[1770108413574,0.0011,2331.2,2330.4,12.4382737]
[1770108413881,0.0011,2331.2,2330.6,13.51095884]
[1770108415286,0.0011,2331.4,2330.9,12.4382737]
[1770108415785,0.0011,2331.4,2331.0,13.51077477]
[1770108416554,0.0011,2331.4,2331.0,1.07250107]
[1770108419281,0.0011,2331.4,2331.0,13.51077477]
[1770108419488,0.899,2331.9,2331.1,14.21835161]
[1770108419858,1.97111162,2331.9,2331.1,14.21835161]
[1770108420461,1.07213938,2331.8,2331.1,2.85248754]
[1770108420692,13.76204792,2331.5,2330.1,12.4382737]
[1770108420992,13.76204792,2331.5,2330.5,1.07272265]
[1770108421391,13.76204792,2331.5,2330.2,0.001]
[1770108421719,12.33637805,2331.1,2330.2,0.001]
[1770108421866,12.33637805,2330.9,2330.0,0.001]
[1770108422067,12.33637805,2330.9,2329.7,1.07405833]
[1770108422307,12.33637805,2330.9,2329.7,0.001]
[1770108422460,12.33637805,2330.7,2329.7,0.001]
[1770108424799,13.40906319,2330.6,2329.7,0.001]
[1770108424975,1.76998038,2330.5,2329.7,0.001]
[1770108425503,14.10635843,2330.5,2329.7,0.001]
[1770108425691,14.10635843,2330.5,2330.2,0.001]
[1770108425888,14.10635843,2330.5,2329.5,0.001]
[1770108426077,14.10635843,2330.5,2330.0,0.001]
[1770108426282,12.33637805,2330.3,2329.5,0.001]
[1770108426487,13.23537805,2330.3,2329.5,0.001]
[1770108427587,13.40924733,2330.2,2329.5,0.001]
[1770108427897,1.07286928,2330.2,2329.5,0.001]
[1770108428424,14.30801717,2330.7,2330.0,0.03882825]
[1770108428718,1.46464319,2330.6,2330.0,0.03882825]
[1770108428917,0.899,2330.7,2330.0,0.03882825]
[1770108429701,0.899,2330.7,2330.1,1.07291532]
[1770108432490,0.0011,2330.9,2330.1,13.51118902]
[1770108433007,1.07365159,2330.9,2330.1,13.51118902]
[1770108434001,1.07365159,2330.9,2330.0,1.11176121]
[1770108434002,0.0011,2330.9,2330.0,1.11176121]
[1770108434310,0.0011,2330.9,2330.1,1.07290534]
[1770108437219,0.0011,2330.9,2330.1,13.51117904]
[1770108438217,0.0011,2330.7,2330.1,13.51117904]
[1770108439701,12.33747805,2330.7,2330.0,1.78420166]
[1770108439902,12.33637805,2330.5,2329.5,0.001]
[1770108440104,12.33637805,2330.5,2329.3,1.07328249]
[1770108440283,12.31030299,2330.3,2329.1,1.07337598]
[1770108440909,12.31030299,2330.3,2329.1,13.75278648]
[1770108441108,1.0727772,2330.4,2329.1,13.75278648]
[1770108441311,2.30646734,2330.6,2329.2,14.48802237]
[1770108441613,1.07271954,2330.6,2329.7,0.03882825]
[1770108442112,0.0011,2330.7,2329.7,12.71823875]
[1770108442290,1.07375141,2330.7,2329.8,1.07305348]
[1770108442491,1.07375141,2330.7,2329.7,1.07306612]
[1770108442492,13.3840544,2330.7,2329.7,1.07306612]
[1770108443295,12.31030299,2330.5,2329.3,1.1120753]
[1770108443530,12.31030299,2330.3,2329.3,2.92054879]
[1770108443714,12.31030299,2330.3,2329.4,1.07323287]
[1770108444404,1.07286928,2330.2,2329.4,1.07323287]
[1770108444716,1.07276593,2330.5,2329.4,13.75264337]
[1770108445217,1.07375775,2330.7,2329.4,13.75264337]
[1770108445427,1.07375775,2330.7,2329.6,12.6794105]
[1770108446015,13.38406074,2330.7,2329.6,12.6794105]
[1770108446212,1.07375775,2330.7,2329.6,12.6794105]
[1770108446411,1.07375775,2330.7,2329.7,13.75251004]
[1770108446412,1.07374611,2330.7,2329.7,13.75251004]
[1770108450641,0.0011,2330.5,2329.7,13.75251004]
[1770108450928,0.0011,2330.5,2329.7,15.75593148]
[1770108452924,0.0011,2330.7,2330.2,12.6794105]
[1770108453952,12.31140299,2330.7,2329.7,15.75593148]
[1770108454155,0.0011,2330.7,2329.9,12.6794105]
[1770108454354,0.0011,2330.7,2330.1,12.6794105]
[1770108454651,0.0011,2330.7,2330.2,13.75227978]
[1770108455030,0.0011,2330.9,2330.3,12.6794105]
[1770108455946,0.0011,2330.9,2330.1,1.07288876]
[1770108456647,0.0011,2330.9,2330.1,13.75229926]
[1770108456837,0.0011,2330.9,2330.3,1.07282324]
[1770108458840,0.0011,2330.9,2330.3,13.75223374]
[1770108459028,0.0011,2331.1,2330.6,12.71823875]
[1770108461650,0.0011,2331.1,2330.7,1.07263912]
[1770108461853,0.0011,2331.1,2330.8,1.80814344]
[1770108462552,13.31280299,2331.1,2330.0,1.27182387]
[1770108462764,0.0011,2330.9,2330.1,1.07391501]
[1770108463050,0.0011,2330.9,2330.3,0.001]
[1770108472266,0.0011,2330.9,2330.3,0.002]
[1770108472567,1.82590403,2330.9,2330.3,0.002]
[1770108472774,1.82590403,2330.9,2330.4,0.001]
[1770108474475,1.0725931,2330.8,2330.5,0.001]
[1770108475248,0.0011,2330.7,2330.5,0.001]
[1770108482187,12.78093497,2330.6,2329.2,13.22585662]
[1770108482477,12.78093497,2330.6,2329.2,13.22587861]
[1770108482478,11.88193497,2330.3,2329.2,13.22587861]
[1770108482679,0.899,2330.6,2329.7,12.15254912]
[1770108483081,12.78093497,2330.6,2329.7,12.15254912]
[1770108483253,12.78093497,2330.6,2329.5,1.07315741]
[1770108483254,12.78093497,2330.6,2329.5,12.15254912]
[1770108483583,13.99385654,2330.5,2329.5,12.15254912]
[1770108483767,13.99385654,2330.5,2329.7,13.22563958]
[1770108483768,2.11192157,2330.5,2329.7,13.22563958]
[1770108483968,2.11192157,2330.5,2329.9,13.22553249]
[1770108484192,1.07268514,2330.6,2329.9,12.15254912]
[1770108486469,1.07268514,2330.6,2329.9,13.22555297]
[1770108486673,0.9001,2330.7,2329.9,13.22555297]
[1770108486872,0.9001,2330.7,2330.1,0.001]
[1770108487068,0.9001,2330.7,2330.2,12.15254912]
[1770108487588,0.0011,2330.7,2330.2,13.36790403]
[1770108488567,0.0011,2330.7,2330.2,14.44076946]
[1770108488773,0.0011,2330.9,2330.3,12.15254912]
[1770108488973,0.0011,2331.1,2330.3,12.15254912]
[1770108490891,0.0011,2331.1,2330.5,12.15254912]
[1770108491193,0.0011,2331.1,2330.5,13.90420464]
[1770108492895,0.0011,2331.1,2330.5,14.97691738]
[1770108499182,0.0011,2330.9,2330.5,14.97691738]
[1770108499774,0.35337593,2331.5,2330.7,12.15254912]
[1770108501372,0.0011,2331.7,2330.6,12.89632163]
[1770108501577,0.0011,2331.7,2331.0,11.99732163]
[1770108502702,0.0011,2331.7,2331.2,11.99732163]
[1770108503582,0.0011,2331.7,2331.0,1.07247189]
[1770108503900,0.0011,2331.7,2331.0,13.06979352]
[1770108504202,0.0011,2331.7,2331.2,11.99732163]
[1770108504416,0.0011,2331.7,2331.1,1.73976743]
[1770108504417,12.52556837,2331.7,2330.9,1.07251508]
[1770108504600,12.52556837,2331.7,2330.9,16.28750937]
[1770108504601,0.0011,2331.7,2330.9,16.28750937]
[1770108504808,0.0011,2331.7,2331.0,11.99732163]
[1770108504987,1.07328192,2331.7,2331.0,11.99732163]
[1770108506111,0.0011,2331.7,2331.0,11.99732163]
[1770108506594,1.07327995,2331.7,2331.0,11.99732163]
[1770108506796,0.0011,2331.7,2331.0,13.06982157]
[1770108507122,1.78982657,2331.7,2331.0,11.99732163]
[1770108507492,1.78982657,2331.7,2331.0,13.06982241]
[1770108508122,0.0011,2331.7,2331.0,13.06982241]
[1770108508619,0.0011,2331.7,2330.9,1.89321254]
[1770108508620,12.52446837,2331.6,2330.9,1.89321254]
[1770108508824,1.07225501,2331.6,2330.5,13.07000723]
[1770108509038,1.07225501,2331.6,2330.5,13.07005179]
[1770108509039,12.52446837,2331.5,2330.5,13.07005179]
[1770108509191,1.07225501,2331.6,2330.5,13.07005179]
[1770108511433,1.07225501,2331.6,2330.9,0.001]
[1770108511721,0.0011,2331.5,2330.9,0.001]
[1770108511919,1.78987029,2331.5,2330.9,0.001]
[1770108513026,0.0011,2331.5,2330.9,0.001]
[1770108513396,12.52556837,2331.5,2330.9,0.001]
[1770108514396,13.42456837,2331.5,2330.9,0.001]
[1770108515732,1.07231706,2331.4,2330.9,0.001]
[1770108516156,13.59678543,2331.4,2330.9,0.001]
[1770108516304,14.40306551,2331.3,2330.6,0.001]
[1770108518122,13.59687742,2331.2,2330.2,11.99732163]
[1770108518894,13.59687742,2331.2,2330.1,0.03872824]
[1770108519096,13.59687742,2331.2,2330.1,0.001]
[1770108519298,12.52446837,2331.0,2330.1,0.001]
[1770108519619,12.52446837,2330.8,2329.9,0.001]
[1770108520319,1.07263912,2330.7,2329.9,11.99832163]
[1770108522309,1.07254708,2330.9,2329.9,13.0712848]
[1770108524831,12.52446837,2330.8,2329.9,11.99832163]
[1770108525030,14.40308875,2330.8,2330.1,0.001]
[1770108525333,1.87862038,2330.8,2330.1,0.001]
[1770108526722,1.07263912,2330.7,2330.1,0.001]
[1770108526933,13.59710749,2330.7,2330.1,0.001]
[1770108527120,1.97662843,2330.6,2330.1,0.001]
[1770108527833,14.5010968,2330.6,2329.9,0.001]
[1770108528812,1.07273117,2330.5,2329.9,0.001]
[1770108529741,13.42346837,2330.4,2329.9,0.001]
[1770108530041,13.42346837,2330.4,2329.7,0.001]
[1770108530334,14.05375112,2330.3,2329.7,0.001]
[1770108530519,1.44961995,2330.3,2329.7,0.001]
[1770108531240,1.07286928,2330.2,2329.7,0.001]
[1770108534440,1.07286928,2330.2,2329.7,12.90372136]
[1770108537246,1.07286928,2330.2,2329.9,0.001]
[1770108537546,1.45774832,2330.1,2329.9,0.001]
[1770108540214,2.53068582,2330.1,2329.9,0.001]
[1770108540416,10.28320268,2330.1,2329.6,0.001]
[1770108540620,7.75251686,2329.8,2329.3,0.001]
[1770108541342,0.9,2329.9,2329.3,0.001]
[1770108541543,0.9,2329.9,2329.3,12.90372136]
[1770108542330,1.07305348,2329.8,2329.3,12.90372136]
[1770108544563,1.07305348,2329.8,2329.3,0.001]
[1770108544772,0.62652072,2329.7,2329.3,0.001]
[1770108545537,13.03808038,2329.7,2329.0,0.001]
[1770108546131,13.03808038,2329.7,2328.9,0.0018008]
[1770108546344,12.41155966,2329.5,2328.7,0.001]
[1770108546659,13.48484347,2329.3,2328.5,0.001]
[1770108547175,13.48484347,2329.3,2328.0,1.45423456]
[1770108547176,22.78098341,2328.9,2327.9,12.90372136]
[1770108547476,13.31155966,2328.8,2327.9,0.001]
[1770108547643,2.36809834,2328.7,2327.9,0.001]
[1770108547963,14.779658,2328.7,2327.9,0.001]
[1770108549257,1.07360645,2328.6,2327.9,0.001]
[1770108549873,12.41155966,2328.2,2327.5,0.001]
[1770108550172,12.41155966,2328.2,2327.0,12.9414496]
[1770108550173,0.9,2328.1,2327.0,12.9414496]
[1770108550362,1.33115597,2328.0,2327.0,12.9414496]
[1770108550575,1.33115597,2328.0,2327.0,14.01578771]
[1770108550871,1.17600645,2328.6,2327.5,12.90272136]
[1770108550872,0.9,2328.4,2327.5,12.90272136]
[1770108551239,0.9,2328.4,2327.9,0.001]
[1770108551653,1.97370729,2328.4,2327.9,12.90372136]
[1770108551935,1.97370729,2328.4,2327.9,0.001]
[1770108552748,1.97370729,2328.4,2327.6,12.90272136]
[1770108552949,0.62683263,2328.3,2327.6,12.90272136]
[1770108553353,1.07379091,2328.2,2327.6,12.90272136]
[1770108555581,1.07332989,2329.2,2327.9,12.90272136]
[1770108555890,1.10007466,2329.3,2327.9,12.90272136]
[1770108556186,1.10007466,2329.3,2328.1,12.90272136]
[1770108556491,2.1733644,2329.3,2328.1,12.90272136]
[1770108557787,2.1733644,2329.3,2328.1,13.97654103]
[1770108557987,14.58492406,2329.3,2328.1,12.90272136]
[1770108558283,14.58492406,2329.3,2328.1,13.97655145]
[1770108558590,1.97780593,2329.2,2328.1,15.8037587]
[1770108558789,2.1733644,2329.3,2328.1,15.8037587]
[1770108561557,2.1733644,2329.3,2328.1,12.90272136]
[1770108562300,13.90066087,2329.3,2328.1,12.90272136]
[1770108562504,0.1024,2329.2,2328.1,12.90272136]
[1770108562677,0.1024,2329.2,2327.4,6.49451688]
[1770108562678,0.1024,2328.9,2327.6,13.671378]
[1770108562998,0.9,2328.8,2327.8,12.59734244]
[1770108563192,0.9,2328.8,2328.2,0.001]
[1770108564600,1.07356035,2328.7,2328.2,0.001]
[1770108568679,1.07356035,2328.7,2328.0,0.001]
[1770108568997,12.80085682,2328.7,2328.0,0.001]
[1770108569292,12.80085682,2328.7,2327.6,12.59734244]
[1770108569293,14.69953594,2328.6,2327.6,12.59734244]
[1770108569502,1.07365256,2328.5,2327.6,12.59734244]
[1770108570382,1.07365256,2328.5,2327.3,1.07418201]
[1770108570383,11.82969647,2328.4,2327.4,12.59734244]
[1770108570881,0.1024,2328.4,2327.4,12.59734244]
[1770108571075,1.905435,2328.4,2327.4,12.59734244]
[1770108571292,13.63273147,2328.4,2327.4,12.59734244]
[1770108571599,1.07374479,2328.3,2327.4,12.59734244]
[1770108571783,0.9,2328.2,2327.4,12.59734244]
[1770108573702,1.07383703,2328.1,2327.4,12.59734244]
[1770108573899,0.62691852,2328.0,2327.4,12.59734244]
[1770108574200,0.62691852,2328.0,2327.2,0.001]
[1770108574402,0.62691852,2328.0,2327.2,12.59834244]
[1770108574914,12.35421499,2328.0,2327.2,0.001]
[1770108575104,12.35421499,2328.0,2327.1,1e-08]
[1770108575105,1.3428052,2327.9,2327.1,1e-08]
[1770108575275,13.07010167,2327.9,2327.1,1e-08]
[1770108575480,1.07397542,2327.8,2327.1,1e-08]
[1770108575776,12.80127189,2327.8,2327.0,0.001]
[1770108575986,11.72729647,2327.6,2327.0,0.001]
[1770108576203,0.9,2327.5,2326.5,12.59734244]
[1770108576411,12.62729647,2327.5,2326.5,12.59734244]
[1770108576700,0.9,2327.5,2326.5,12.59734244]
[1770108576877,0.9,2327.5,2326.7,12.59734244]
[1770108577703,1.07416,2327.4,2326.7,12.59734244]
[1770108580506,1.97413993,2327.5,2326.7,12.59734244]
[1770108580910,1.97413993,2327.5,2326.7,13.67180064]
[1770108581112,1.97413993,2327.5,2326.7,12.59734244]
[1770108581308,0.62704464,2327.4,2326.7,12.59734244]
[1770108581628,0.62704464,2327.4,2326.4,1.07558826]
[1770108581629,1.07420616,2327.3,2326.5,12.59734244]
[1770108581825,12.80150263,2327.3,2326.4,0.001]
[1770108582122,12.80150263,2327.3,2326.4,12.59834244]
[1770108582294,1.77253719,2327.2,2326.4,12.59834244]
[1770108583725,1.07429848,2327.1,2326.4,12.59834244]
[1770108584431,1.07429848,2327.1,2326.4,13.67295732]
[1770108584608,1.07428699,2327.2,2326.4,13.6729597]
[1770108585615,4.29689433,2327.3,2326.4,12.59834244]
[1770108585808,0.59981451,2327.2,2326.4,12.59834244]
[1770108587713,1.07429848,2327.1,2326.6,0.001]
[1770108589415,1.67408969,2327.2,2326.6,12.59834244]
[1770108589831,1.07416384,2327.4,2326.8,12.59734244]
[1770108590328,1.07416384,2327.4,2326.6,13.82745062]
[1770108591342,1.07416384,2327.4,2326.6,12.46005457]
[1770108591509,1.07416384,2327.4,2326.6,13.53457974]
[1770108591815,1.07416384,2327.4,2326.6,12.46005457]
[1770108593826,1.97414674,2327.5,2326.6,13.53457211]
[1770108594036,1.97411774,2327.5,2326.6,13.53457211]
[1770108594225,1.97411774,2327.5,2326.8,12.32702884]
[1770108594632,7.77027223,2327.4,2326.8,12.32702884]